{"text_format":"1","workbook":"xlsx","n_sheets":5,"sheets":["Celková cena","Ostatní informace","PC","SaMa","Řadič"],"not_rendered":{"charts":0,"images":0,"macros":1,"external_links":0,"defined_names":2,"comments":0,"pivot_tables":0},"unopened":[],"bounds":{"document_bytes":16777216,"sheet_cells":100000,"rows_first":2000,"rows_last":500,"rows_between":2000,"halvings":0,"cell_chars":16384,"cell_head_chars":4096},"cells_cut":0,"cells_raw":0,"read":"whole","date_system":"1900"}

{"sheet":"Celková cena","index":0,"n_rows":34,"n_cols":13,"rows_kept":34,"cut":false,"hidden":false,"merged":[[5,2,5,4],[6,2,6,4],[33,1,33,4]]}
[null,null,null,null,null,null,null,null,null,null,null,null,1]
[]
[]
[]
[]
[null,null,"Dynamický nákupní systém"]
[null,null,{"$f":"VLOOKUP($M$1,Řadič!$A$2:$B$4,2,FALSE)","v":"Pěstební činnosti včetně dodávky sadebního materiálu"}]
[]
[null,null,"kód zakázky:",154635,null,null,null,null,null,null,null,null,{"$f":"IF(AND(ISNUMBER(D9),D9<>\"\"),1,0)","v":1}]
[null,null,"název zakázky:","Moravec - zalesnění obalovaným bukem podzim 2021"]
[null,null,"číslo OJ:",154]
[null,null,"název OJ:","Nové Město na Moravě"]
[null,null,"číslo KŘ/LZ:",943]
[null,null,"název KŘ/LZ:","OŘ Vysočina"]
[null,null,"výměra [ha]:",16.7]
[]
[null,null,null,"Obchodní firma/název:"]
[null,null,null,"Sídlo/místo podnikání:"]
[null,null,null,"Právní forma:"]
[null,null,null,"IČO:"]
[null,null,null,"DIČ:"]
[null,null,null,"Spisová značka ve veřejném rejstříku (je-li relevantní)"]
[null,null,null,"Bankovní spojení:"]
[null,null,null,"Osoba oprávněná zastupovat účastníka zadávacího řízení:"]
[null,null,null,"Telefon:"]
[null,null,null,"E-mail účastníka zadávacího řízení pro elektronickou komunikaci:"]
[null,null,null,"Kontaktní osoba účastníka v zadávacím řízení:"]
[null,null,null,"Telefon na kontaktní osobu:"]
[null,null,null,"E-mail na kontaktní osobu:"]
[]
[null,null,null,null,"Nabídková cena (NCCELKEM) bez DPH"]
[null,null,null,null,{"$f":"ROUND(PC!$H$2,0)+ROUND(SaMa!$I$2,0)","v":0}]
[]
[null,"Čestné PROHLÁŠENÍ O NEEXISTENCI STŘETU ZÁJMŮ dle ust. § 4b zákona č. 159/2006 Sb., o střetu zájmů, ve znění pozdějších předpisů (dále jen \"zákon o střetu zájmů\") - doklad k prokázání splnění zadávací podmínky stanovené zadavatelem v článku 5.3. ZD\n\nDodavatel tímto čestně prohlašuje, že:\n\n- není obchodní společností, ve které veřejný funkcionář uvedený v ust. § 2 odst. 1 písm. c) zákona o střetu zájmů (tj. člen vlády nebo vedoucí jiného ústředního správního úřadu, v jehož čele není člen vlády) nebo jím ovládaná osoba vlastní podíl představující alespoň 25 % účasti společníka v obchodní společnosti;\n\n- poddodavatel, prostřednictvím kterého dodavatel prokazuje kvalifikaci (existuje-li takový), není obchodní společností, ve které veřejný funkcionář uvedený v ust. § 2 odst. 1 písm. c) zákona o střetu zájmů (tj. člen vlády nebo vedoucí jiného ústředního správního úřadu, v jehož čele není člen vlády) nebo jím ovládaná osoba vlastní podíl představující alespoň 25 % účasti společníka v obchodní společnosti."]

{"sheet":"Ostatní informace","index":1,"n_rows":55,"n_cols":3,"rows_kept":55,"cut":false,"hidden":false,"merged":[]}
[null,"Ostatní informace"]
[]
[null,"Název firmy:",{"$f":"'Celková cena'!$E$17","v":0}]
[null,"IČO:",{"$f":"'Celková cena'!$E$20","v":0}]
[null,"Kód zakázky:",{"$f":"'Celková cena'!$D$9","v":154635}]
[null,"Název OJ:",{"$f":"'Celková cena'!$D$12","v":"Nové Město na Moravě"}]
[]
[]
[]
[]
[null,"SUJ + výčet oddělení"]
[null,"LS Nové Město na Moravě; revír Moravec"]
[]
[null,"Kontaktní osoba"]
[null,"revírník: Stanislav Hořínek  724 524 193; technik LS Ing. Eva Sedláčková 725 257 866"]
[]
[null,"Stručný rozsah a omezení ZCHÚ, CHKO, PHO, případně omezení jinými vlastníky a uživateli."]
[]
[]
[]
[]
[]
[]
[null,"Stručný popis technologie"]
[null,"Zalesnění včetně dodávky sazenic."]
[]
[]
[]
[]
[null,"Sadební materiál: bližší informace vizl. Příloha č. P1 Projekt pěstebních činností"]
[null,"Při zalesnění  požadujeme používat šňůry - v požadovaném sponu sázet rovné řady. "]
[null,"Veškeré obaly a odpady musí být odvezeny z lesa před převzetím prací. "]
[null,"sadební materiál LČR: není"]
[null,"Sadební materiál: bližší informace vizl. Příloha č. P1 Projekt pěstebních činností"]
[null,"Bližší definice ceníkových kódů PČ:"]
[]
[]
[null,"011 111 - úklid klestu bez pálení - pouze dle potřeby "]
[null,"011 611 - dočišťování ploch po těžbě; bližší inf. viz . Podrobné podmínky provádění pěst. činností"]
[]
[null,"016 221 -První sadba do nepřipravené půdy štěrbinová - možný podíl rýhovacím strojem 0%"]
[null,"podrobněji viz. Příloha č. P 3 - podrobné podmínky provádění pěstebních činností"]
[]
[null,"022 011 - Oplocenky z nov. materiálu drátěné 160/3 drátěná; standard LČR; výška pletiva 160 cm,"]
[null,"vstup pouze branky"]
[null,"Do výšky min. 60 cm max. vzdálenost drátů 5 cm; bližší informace viz. příloha č. P5 "]
[null,"Upozorňujeme na min. Průměr vodících a ostatních drátů (viz. příloha č P5)"]
[null,"Dřeviny, které mají být oploceny budou revírníkem přejmuty až po jejich oplocení"]
[null,"058 141 - Práce s křovinořem - dle pokynů revírníka"]
[]
[null,"Z důvodu omezení, daných certifikací lesů PEFC je vyloučeno použití přípravků pro ochranu rostlin s "]
[null,"účinnými látkami zařazenými do kategorie Ia, Ib dle klasifikace WHO, pokud existuje nákladově "]
[null,"srovnatelný přípravek s jinou účinnou látkou. "]
[null,"Jakékoli použití vyloučeného přípravku, jakož i jeho náíhrada v případě, že je jeho použití definováno"]
[null,"v ostatních informacích, je podmíněno písemným souhlasem LČR. "]

{"sheet":"PC","index":2,"n_rows":16,"n_cols":15,"rows_kept":16,"cut":false,"hidden":false,"merged":[]}
[null,null,"Ceník a sumář pěstebních činností (část A - PČ)"]
[null,null,null,null,null,"Nabízená cena pěstebních činností (CPČ):",null,{"$f":"SUMPRODUCT($F$12:$F$16,$G$12:$G$16)","v":0}]
[null,null,"Název firmy:",{"$f":"'Celková cena'!$E$17","v":0}]
[null,null,"IČO:",{"$f":"'Celková cena'!$E$20","v":0}]
[null,null,"Kód zakázky:",{"$f":"'Celková cena'!$D$9","v":154635}]
[null,null,"Název OJ:",{"$f":"'Celková cena'!$D$12","v":"Nové Město na Moravě"}]
[]
[]
[]
[null,null,null,null,null,null,null,null,null,null,null,null,null,null,{"$f":"COUNTIF($O$12:$O$16,TRUE)","v":5}]
[null,null,"CK","Název CK","MJ","Počet MJ","Cena\n(Kč/MJ)","Poznámka",null,null,null,null,null,null,"Struktura"]
[null,null,11110,"Úklid klestu (bez pálení) - ručně i mech. - jehl.+list.","m3",200,null,"max. cena 60,-  Kč/m3",null,null,null,null,null,null,true]
[null,null,11610,"Dočišťování ploch po těžbě","ha",0.5,null,"max. cena 5 000,- Kč/ha",null,null,null,null,null,null,true]
[null,null,16220,"Sadba a podsadba do nepřipravené půdy - ruční + mech. - štěrbinová","1000 ks",116.048,null,"max. cena 4 500,- Kč/1000ks",null,null,null,null,null,null,true]
[null,null,22010,"Oplocenky z nov.mat.-drátěné-Drátěná  160/3","km",7,null,"max . cena 120 000,- Kč/km ",null,null,null,null,null,null,true]
[null,null,58140,"Práce s křovinořezem","hod",10,null,"max. cena 400,- Kč/hod",null,null,null,null,null,null,true]

{"sheet":"SaMa","index":3,"n_rows":14,"n_cols":15,"rows_kept":14,"cut":false,"hidden":false,"merged":[]}
[null,"Ceník a sumář pěstebních činností (část B - SaMa)"]
[null,null,null,null,null,null,"Nabízená cena sad. materiálu (CSaMa):",null,{"$f":"SUMPRODUCT($G$12:$G$14,$H$12:$H$14)","v":0}]
[null,"Název firmy:",{"$f":"'Celková cena'!$E$17","v":0}]
[null,"IČO:",{"$f":"'Celková cena'!$E$20","v":0},null,null,null,null,null,null,null,null,null,null,null,"Struktura"]
[null,"Kód zakázky:",{"$f":"'Celková cena'!$D$9","v":154635},null,null,null,null,null,null,null,null,null,null,null,true]
[null,"Název OJ:",{"$f":"'Celková cena'!$D$12","v":"Nové Město na Moravě"},null,null,null,null,null,null,null,null,null,null,null,false]
[]
[null,"Ceny sadebního materiálu jsou uvedeny se započtením nákladů na dopravu a nákladů na manipulaci se sadebním materiálem."]
[null,""]
[null,null,null,null,null,null,null,null,null,null,null,null,null,null,{"$f":"COUNTIF($O$12:$O$14,1)","v":3}]
[null,"CK","Dřevina","Typ","Třída*","Obal**","Množství \n[tis.ks]***","Cena\n [Kč/tis.ks]***","Poznámka",null,null,null,null,null,"Struktura"]
[null,50155,"BK","semenáčky","5 mm","  SAD",112.952,null,"max. cena 22 000,- Kč/1000ks",null,null,null,null,null,{"$f":"IF(AND(ISNUMBER($B12),OR(LEN($B12)=4,LEN($B12)=5)),1,0)","v":1}]
[null,50255,"BK","sazenice","5 mm","  SAD",1.1519999999999999,null,"max. cena 24 000,- Kč/1000ks",null,null,null,null,null,{"$f":"IF(AND(ISNUMBER($B13),OR(LEN($B13)=4,LEN($B13)=5)),1,0)","v":1}]
[null,50265,"BK","sazenice","6 mm","  SAD",1.944,null,"max. cena 26 000,- Kč/1000ks",null,null,null,null,null,1]

{"sheet":"Řadič","index":4,"n_rows":83,"n_cols":16,"rows_kept":83,"cut":false,"hidden":true,"merged":[]}
["HELP","DRUH DNS",null,"List SaMa",null,null,null,"List SaMa",null,null,null,"List SaMa"]
[3,"Pěstební činnosti",null,"Kod","Nazev","Zkr",null,"kód","zkratka","popis",null,"Kód","Zkratka","Název 1","Název 2","Použitelnost do … (včetně)"]
[2,"Dodávka sadebního materiálu",null,1,"Smrk ztepilý","SM",null,0,"osivo","semena, osivo",null,0,"  PRK","Prostokoř.","Prostokořenný sadební materiál","neomezeno"]
[1,"Pěstební činnosti včetně dodávky sadebního materiálu",null,2,"Smrk pichlavý","SMP",null,1,"semenáčky","semenáčky",null,1,"  RCK","Rašelinocelulozový kelímek","Rašelinocelulozový kelímek","neomezeno"]
[null,null,null,3,"Smrk černý","SMC",null,2,"sazenice","sazenice",null,2,"  PES-Zákaz","Polyetylénový sáček","Polyetylénový sáček",2005]
[null,null,null,4,"Smrk sivý","SMS",null,3,"poloodrostky","poloodrostky",null,3," NIS-Zákaz","Rolovaný obal Nisula","Rolovaný obal Nisula",2002]
[null,null,null,5,"Smrk omorika","SMO",null,4,"semenáč.nálet","semenáčky z náletu",null,4,"  JFF","Jiffy tableta","Jiffy tableta","Neomezeno"]
[null,null,null,6,"Smrk engelmanův","SME",null,5,"jinak.specif.","smluvně specifikovaný sadební materiál",null,5,"  SAD","Plastový sadbovač","Plastový sadbovač","Neomezeno"]
[null,null,null,9,"Smrky ostatní","SMX",null,6,"řízkovanec","řízkovanec",null,6,"  JUT","Jutový sáček","Jutový sáček","Neomezeno"]
[null,null,null,10,"Jedle bělokorá","JD",null,7,"nest.sazenice","nestandardní sazenice",null,9,"  OST","Nespecifikovaný obal","Nespecifikovaný obal","dle přílohy P11 OS"]
[null,null,null,11,"Jedle obrovská","JDO",null,8,"nest.semenáčky","nestandardní semenáčky"]
[null,null,null,12,"Jedle ojíněná","JDJ",null,9,"nest.ostatní","nestandard ostatní "]
[null,null,null,13,"Jedle kavkazská","JDK"]
[null,null,null,14,"Jedle vznešná","JDV"]
[null,null,null,16,"Jedle ostatní","JDX"]
[null,null,null,18,"Douglaska tisolistá","DG"]
[null,null,null,20,"Borovice lesní","BO"]
[null,null,null,21,"Borovice černá","BOC"]
[null,null,null,22,"Borovice banksovka","BKS"]
[null,null,null,23,"Vejmutovka","VJ"]
[null,null,null,24,"Borovice-limba","LMB"]
[null,null,null,25,"Borovice pokroucená","BOP"]
[null,null,null,27,"Borovice ostatní","BOX"]
[null,null,null,28,"Kosodřevina","KOS"]
[null,null,null,29,"Borovice blatka","BL"]
[null,null,null,30,"Modřín evropský","MD"]
[null,null,null,31,"Modříny ostatní","MDX"]
[null,null,null,33,"Tis obecný","TS"]
[null,null,null,35,"Jalovec obený","JAL"]
[null,null,null,39,"Ostatní jehličnany","JX"]
[null,null,null,40,"Dub letní","DB"]
[null,null,null,41,"Dub slavonský","DBS"]
[null,null,null,42,"Dub zimní","DBZ"]
[null,null,null,43,"Dub červený","DBC"]
[null,null,null,44,"Dub pýřitý","DBP"]
[null,null,null,45,"Dub bahenní","DBB"]
[null,null,null,47,"Duby ostatní","DBX"]
[null,null,null,48,"Dub slovenský - cer","CER"]
[null,null,null,50,"Buk lesní","BK"]
[null,null,null,51,"Habr obecný","HB"]
[null,null,null,52,"Javor mléčný","JV"]
[null,null,null,53,"Javor klen","KL"]
[null,null,null,54,"Javor babyka","BB"]
[null,null,null,55,"Javor jasanolistý","JVJ"]
[null,null,null,56,"Javory ostatní","JVX"]
[null,null,null,57,"Jasan ztepilý","JS"]
[null,null,null,58,"Jasan americký","JSA"]
[null,null,null,59,"Jasan úzkolistý","JSU"]
[null,null,null,60,"Jilm habrolistý","JL"]
[null,null,null,61,"Jilm horský","JLH"]
[null,null,null,62,"Jilm vaz","JLV"]
[null,null,null,63,"Akát","AK"]
[null,null,null,64,"Bříza bradavičnatá","BR"]
[null,null,null,65,"Bříza pýřitá","BRP"]
[null,null,null,66,"Jeřáb ptačí","JR"]
[null,null,null,67,"Jeřáb břek","BRK"]
[null,null,null,68,"Jeřáb muk","MK"]
[null,null,null,70,"Ořešák královský","OR"]
[null,null,null,71,"Ořešák černý","ORC"]
[null,null,null,72,"Platan javorolistý","PL"]
[null,null,null,74,"Třešeň ptačí","TR"]
[null,null,null,75,"Střemcha pozdní","STR"]
[null,null,null,76,"Hrušeň","HR"]
[null,null,null,77,"Jabloň","JB"]
[null,null,null,79,"Ostat.listnáče tvrdé","LTX"]
[null,null,null,80,"Lípa srdčitá","LP"]
[null,null,null,81,"Lípa velkolistá","LPV"]
[null,null,null,82,"Lípa stříbrná","LPS"]
[null,null,null,83,"Olše lepkavá","OL"]
[null,null,null,84,"Olše šedá","OLS"]
[null,null,null,85,"Olše zelená","OLZ"]
[null,null,null,86,"Osika","OS"]
[null,null,null,87,"Topol bílý","TP"]
[null,null,null,88,"Topol černý","TPC"]
[null,null,null,89,"Ost.topoly nešlechť.","TPX"]
[null,null,null,90,"Topoly šlechtěné","TPS"]
[null,null,null,91,"Jíva","JIV"]
[null,null,null,92,"Vrba bílá,v. křehká","VR"]
[null,null,null,93,"Jírovec maďal","KS"]
[null,null,null,94,"Kaštanovník jedlý","KJ"]
[null,null,null,95,"Pajasan žláznatý","PJ"]
[null,null,null,97,"Ostat.listnáče měkké","LMX"]
[null,null,null,98,"Keře","KR"]